fUST/lending_fUST_20251021
["ID","MTS","AMOUNT","RATE_DAILY","PERIOD"]
[391970299,1761035449892,-199.56551723,0.00033746,120]
[391970300,1761035449902,-297.00978538,0.00033746,120]
[391970301,1761035449911,-214.93253888,0.00033746,120]
[391970302,1761035449920,-309.98098407,0.00033746,120]
[391970303,1761035449930,-374.57197905,0.00033746,120]
[391970304,1761035449939,-2153.30691468,0.00033746,120]
[391970305,1761035449948,-165.29521969,0.00033746,30]
[391970306,1761035449958,-262.88211953,0.00033746,120]
[391970307,1761035449968,-152.49861095,0.00033746,120]
[391970308,1761035449979,-174.73273081,0.00033746,120]
[391970309,1761035449988,-324.91212683,0.00033746,120]
[391970310,1761035449997,-283.52303896,0.00033746,120]
[391970311,1761035450007,-167.87758857,0.00033746,120]
[391970312,1761035450016,-188.70970372,0.00033746,120]
[391970313,1761035450025,-228.16706364,0.00033746,120]
[391970314,1761035450034,-400.04645533,0.00033746,120]
[391970315,1761035450044,-345.99295465,0.00033746,120]
[391970316,1761035450053,-371.54360932,0.00033746,120]
[391970317,1761035450063,-228.40918099,0.00033746,120]
[391970318,1761035450072,-345.86542551,0.00033746,120]
[391970319,1761035450084,-369.56406579,0.00033746,120]
[391970320,1761035450094,-423.06120902,0.00033746,120]
[391970321,1761035450104,-161.64342499,0.00033746,120]
[391970322,1761035450113,-171.46988344,0.00033746,120]
[391970323,1761035450123,-191.62312337,0.00033746,120]
[391970324,1761035450133,-176.50454292,0.00033746,120]
[391970325,1761035450142,-394.86878588,0.00033746,120]
[391970326,1761035450154,-365.25394059,0.00033746,20]
[391970327,1761035450165,-335.44082902,0.00033746,120]
[391970328,1761035450174,-337.07624939,0.00033746,120]
[391970329,1761035450184,-282.07387986,0.00033746,120]
[391970330,1761035450193,-229.71,0.00033746,120]
[391970331,1761035450203,-394.67394559,0.00033746,120]
[391970332,1761035450213,-178.64284585,0.00033746,120]
[391970333,1761035450222,-379.45147448,0.00033746,120]
[391970334,1761035450231,-186.89857969,0.00033746,120]
[391970335,1761035450240,-210.87824118,0.00033746,120]
[391970336,1761035450249,-332.11522125,0.00033746,120]
[391970337,1761035450259,-341.61552103,0.00033746,120]
[391970338,1761035450268,-188.88581554,0.00033746,120]
[391970339,1761035450278,-447.58615238,0.00033746,120]
[391970340,1761035450287,-294.52880728,0.00033746,120]
[391970341,1761035450296,-185.42078678,0.00033746,120]
[391970342,1761035450306,-414.37440486,0.00033746,120]
[391970343,1761035450315,-327.35863497,0.00033746,120]
[391970344,1761035450325,-366.8381459,0.00033746,120]
[391970345,1761035450334,-160.40054633,0.00033746,120]
[391970346,1761035450343,-369.73327083,0.00033746,120]
[391970347,1761035450353,-306.42066913,0.00033746,120]
[391970348,1761035450362,-234.77599457,0.00033746,120]
[391970349,1761035450371,-418.34690404,0.00033746,120]
[391970350,1761035450380,-366.54213684,0.00033746,120]
[391970351,1761035450389,-170.13234607,0.00033746,120]
[391970352,1761035450400,-257.41376141,0.00033746,120]
[391970353,1761035450409,-323.98193233,0.00033746,120]
[391970354,1761035450419,-159.66306678,0.00033746,120]
[391970355,1761035450428,-184.34281311,0.00033746,120]
[391970356,1761035450438,-316.62120483,0.00033746,120]
[391970357,1761035450447,-308.51217623,0.00033746,120]
[391970358,1761035450456,-225.73388526,0.00033746,120]
[391970359,1761035450465,-198.95611537,0.00033746,120]
[391970360,1761035450475,-424.64075295,0.00033746,120]
[391970361,1761035450484,-200.0,0.00033746,120]
[391970362,1761035450494,-189.27182953,0.00033746,120]
[391970363,1761035450533,-416.54300232,0.00033746,120]
[391970364,1761035450543,-292.74073911,0.00033746,120]
[391970365,1761035450553,-361.83168254,0.00033746,120]
[391970366,1761035450562,-333.12867377,0.00033746,120]
[391970367,1761035450571,-206.10363612,0.00033746,120]
[391970368,1761035450581,-222.72275159,0.00033746,120]
[391970369,1761035450591,-410.97278858,0.00033746,120]
[391970370,1761035450600,-363.99485222,0.00033746,120]
[391970371,1761035450610,-165.20670608,0.00033746,120]
[391970372,1761035450619,-374.47153904,0.00033746,120]
[391970373,1761035450628,-224.6774724,0.00033746,120]
[391970374,1761035450637,-274.69651169,0.00033746,120]
[391970375,1761035450646,-241.98029006,0.00033746,120]
[391970376,1761035450655,-350.7753437,0.00033746,120]
[391970377,1761035450663,-278.07715292,0.00033746,120]
[391970378,1761035450672,-255.8,0.00033746,30]
[391970379,1761035450681,-417.13268437,0.00033746,120]
[391970380,1761035450690,-321.16566456,0.00033746,120]
[391970381,1761035450699,-380.9775611,0.00033746,120]
[391970382,1761035450709,-331.15479671,0.00033746,120]
[391970383,1761035450718,-321.41055788,0.00033746,120]
[391970384,1761035450727,-424.28535557,0.00033746,120]
[391970385,1761035450736,-269.77950613,0.00033746,120]
[391970386,1761035450745,-342.35904021,0.00033746,120]
[391970387,1761035450753,-203.61255142,0.00033746,120]
[391970388,1761035450762,-395.17432921,0.00033746,120]
[391970389,1761035450771,-404.99853031,0.00033746,120]
[391970390,1761035450781,-162.52322261,0.00033746,120]
[391970391,1761035450790,-410.72658949,0.00033746,120]
[391970392,1761035450799,-263.96802492,0.00033746,120]
[391970393,1761035450808,-251.16591331,0.00033746,120]
[391970394,1761035450818,-165.05001831,0.00033746,120]
[391970395,1761035450827,-348.34715455,0.00033746,120]
[391970396,1761035450836,-500.0,0.00033746,120]
[391970397,1761035450845,-166.76761461,0.00033746,120]
[391970398,1761035450855,-354.01141074,0.00033746,120]
[391970399,1761035450864,-165.59648438,0.00033746,120]
[391970400,1761035450873,-384.87317123,0.00033746,120]
[391970401,1761035450884,-293.41172066,0.00033746,120]
[391970402,1761035450893,-357.02461506,0.00033746,120]
[391970403,1761035450902,-410.91014494,0.00033746,120]
[391970404,1761035450912,-291.41375682,0.00033746,120]
[391970405,1761035450921,-213.97893038,0.00033746,120]
[391970406,1761035450932,-433.14485855,0.00033746,120]
[391970407,1761035450944,-162.15910244,0.00033746,120]
[391970408,1761035450953,-221.38670913,0.00033746,120]
[391970409,1761035450962,-389.47918451,0.00033746,120]
[391970410,1761035450971,-419.49734729,0.00033746,120]
[391970411,1761035450981,-326.61165376,0.00033746,120]
[391970412,1761035450990,-251.1566581,0.00033746,120]
[391970413,1761035450999,-403.09458052,0.00033746,120]
[391970414,1761035451008,-361.37741827,0.00033746,120]
[391970415,1761035451017,-398.10116658,0.00033746,120]
[391970416,1761035451026,-162.04528578,0.00033746,120]
[391970417,1761035451036,-256.23881345,0.00033746,120]
[391970418,1761035451045,-164.3402816,0.00033746,120]
[391970419,1761035451054,-197.97180355,0.00033746,120]
[391970420,1761035451064,-343.82955366,0.00033746,120]
[391970421,1761035451073,-358.88441865,0.00033746,120]
[391970422,1761035451087,-413.55931788,0.00033746,120]
[391970423,1761035451096,-265.45934638,0.00033746,120]
[391970424,1761035451107,-387.77553374,0.00033746,120]
[391970425,1761035451117,-402.99254667,0.00033746,120]
[391970426,1761035451128,-241.35018852,0.00033746,120]
[391970427,1761035451139,-436.70480748,0.00033746,120]
[391970428,1761035451150,-403.65072265,0.00033746,120]
[391970429,1761035451160,-276.63308872,0.00033746,120]
[391970430,1761035451170,-435.18678753,0.00033746,120]
[391970431,1761035451181,-265.50140123,0.00033746,120]
[391970432,1761035451191,-425.96149574,0.00033746,120]
[391970433,1761035451201,-279.98882005,0.00033746,120]
[391970434,1761035451211,-185.36577494,0.00033746,120]
[391970435,1761035451220,-361.28002173,0.00033746,120]
[391970436,1761035451230,-376.83532852,0.00033746,120]
[391970437,1761035451239,-391.18156201,0.00033746,120]
[391970438,1761035451248,-355.81261496,0.00033746,120]
[391970439,1761035451257,-230.12716638,0.00033746,120]
[391970440,1761035451266,-168.9452893,0.00033746,120]
[391970441,1761035451275,-347.70621717,0.00033746,120]
[391970442,1761035451284,-365.56815942,0.00033746,120]
[391970443,1761035451293,-500.0,0.00033746,120]
[391970444,1761035451303,-500.0,0.00033746,120]
[391970445,1761035451312,-500.0,0.00033746,120]
[391970446,1761035451322,-500.0,0.00033746,120]
[391970447,1761035451333,-509.781329,0.00033746,120]
[391970448,1761035451342,-159.95239725,0.00033746,120]
[391970449,1761035451353,-301.34724679,0.00033746,120]
[391970450,1761035451363,-309.9439051,0.00033746,120]
[391970451,1761035451372,-318.91595434,0.00033746,120]
[391970452,1761035451382,-162.46033221,0.00033746,120]
[391970453,1761035451392,-377.51666557,0.00033746,120]
[391970454,1761035451401,-168.10822867,0.00033746,120]
[391970455,1761035451410,-197.5320609,0.00033746,120]
[391970456,1761035451419,-242.03185515,0.00033746,120]
[391970457,1761035451428,-168.9741784,0.00033746,120]
[391970458,1761035451438,-383.40487616,0.00033746,120]
[391970459,1761035451447,-265.97166538,0.00033746,120]
[391970460,1761035451457,-254.77750481,0.00033746,120]
[391970461,1761035451466,-326.17774315,0.00033746,120]
[391970462,1761035451476,-253.17580404,0.00033746,120]
[391970463,1761035451487,-412.81150398,0.00033746,120]
[391970464,1761035451496,-282.5580033,0.00033746,120]
[391970465,1761035451506,-347.35486499,0.00033746,120]
[391970466,1761035451515,-221.06313498,0.00033746,120]
[391970467,1761035451525,-336.21035768,0.00033746,120]
[391970468,1761035451534,-290.30167878,0.00033746,120]
[391970469,1761035451545,-202.10295371,0.00033746,120]
[391970470,1761035451555,-349.51851282,0.00033746,120]
[391970471,1761035451564,-164.00898264,0.00033746,120]
[391970472,1761035451574,-209.1183323,0.00033746,120]
[391970473,1761035451583,-423.71093581,0.00033746,120]
[391970474,1761035451593,-254.68396781,0.00033746,120]
[391970475,1761035451603,-411.29940697,0.00033746,120]
[391970476,1761035451613,-379.76531,0.00033746,120]
[391970477,1761035451622,-342.28707961,0.00033746,120]
[391970478,1761035451631,-224.72826274,0.00033746,120]
[391970479,1761035451640,-231.4147018,0.00033746,120]
[391970480,1761035451652,-406.38783543,0.00033746,120]
[391970481,1761035451661,-400.0,0.00033746,120]
[391970482,1761035451670,-162.21053491,0.00033746,120]
[391970483,1761035451679,-217.72946046,0.00033746,120]
[391970484,1761035451689,-155.10381933,0.00033746,120]
[391970485,1761035451698,-164.22,0.00033746,120]
[391970486,1761035451707,-279.2231538,0.00033746,120]
[391970487,1761035451716,-225.34289436,0.00033746,120]
[391970488,1761035451725,-419.4931485,0.00033746,120]
[391970489,1761035451735,-266.01980306,0.00033746,120]
[391970490,1761035451744,-250.8641957,0.00033746,120]
[391970491,1761035451753,-343.94132825,0.00033746,120]
[391970492,1761035451763,-10000.0,0.00033746,30]
[391970493,1761035451772,-300.88237815,0.00033746,120]
[391970494,1761035451783,-419.73802263,0.00033746,120]
[391970495,1761035451793,-309.49907121,0.00033746,120]
[391970496,1761035451804,-260.73945298,0.00033746,120]
[391970497,1761035451814,-440.98472822,0.00033746,120]
[391970498,1761035451823,-166.04323638,0.00033746,120]
[391970499,1761035451833,-441.52340448,0.00033746,120]
[391970500,1761035451843,-207.46239445,0.00033746,120]
[391970501,1761035451852,-189.45216557,0.00033746,120]
[391970502,1761035451861,-360.65772121,0.00033746,120]
[391970503,1761035451871,-216.64454243,0.00033746,120]
[391970504,1761035451881,-500.0,0.00033746,120]
[391970505,1761035451890,-219.54930136,0.00033746,120]
[391970506,1761035451899,-226.85135275,0.00033746,120]
[391970507,1761035451908,-354.01335826,0.00033746,120]
[391970508,1761035451918,-343.28668383,0.00033746,120]
[391970509,1761035451927,-10141.0,0.00033746,30]
[391970510,1761035451937,-385.02894324,0.00033746,120]
[391970511,1761035451947,-200.0,0.00033746,120]
[391970512,1761035451956,-314.11845444,0.00033746,120]
[391970513,1761035451966,-421.36419871,0.00033746,120]
[391970514,1761035451975,-426.45251222,0.00033746,120]
[391970515,1761035451986,-391.04550431,0.00033746,120]
[391970516,1761035451996,-383.39561266,0.00033746,30]
[391970517,1761035452006,-165.75843684,0.00033746,120]
[391970518,1761035452015,-236.57164057,0.00033746,120]
[391970519,1761035452024,-204.01457764,0.00033746,120]
[391970520,1761035452034,-194.86793676,0.00033746,120]
[391970521,1761035452043,-280.06749692,0.00033746,120]
[391970522,1761035452052,-300.05103763,0.00033746,120]
[391970523,1761035452061,-377.59178907,0.00033746,120]
[391970524,1761035452070,-529.21697455,0.00033746,120]
[391970525,1761035452080,-261.84552471,0.00033746,120]
[391970526,1761035452094,-151.651323,0.00033746,100]
[391970527,1761035452103,-385.45022287,0.00033746,120]
[391970528,1761035452113,-335.22811249,0.00033746,120]
[391970529,1761035452123,-215.67838035,0.00033746,120]
[391970530,1761035452133,-172.9597259,0.00033746,120]
[391970531,1761035452142,-152.68857036,0.00033746,120]
[391970532,1761035452151,-354.01750547,0.00033746,120]
[391970533,1761035452162,-383.3824266,0.00033746,120]
[391970534,1761035452171,-429.68387353,0.00033746,120]
[391970535,1761035452181,-379.10824262,0.00033746,120]
[391970536,1761035452190,-395.03520336,0.00033746,120]
[391970537,1761035452199,-357.25997543,0.00033746,120]
[391970538,1761035452208,-276.11029494,0.00033746,120]
[391970539,1761035452217,-360.10125385,0.00033746,120]
[391970540,1761035452227,-400.7277722,0.00033746,120]
[391970541,1761035452236,-330.09597076,0.00033746,120]
[391970542,1761035452246,-305.00692244,0.00033746,120]
[391970543,1761035452256,-381.48051841,0.00033746,120]
[391970544,1761035452265,-172.6977217,0.00033746,120]
[391970545,1761035452274,-154.02575348,0.00033746,120]
[391970546,1761035452284,-273.68857137,0.00033746,120]
[391970547,1761035452293,-314.62576361,0.00033746,120]
[391970548,1761035452302,-281.15199832,0.00033746,120]
[391970549,1761035452312,-338.19968402,0.00033746,120]
[391970550,1761035452321,-243.55376931,0.00033746,120]
[391970551,1761035452331,-20078.89,0.00033746,120]
[391970552,1761035452341,-321.51831363,0.00033746,120]
[391970553,1761035452351,-159.23180572,0.00033746,120]
[391970554,1761035452361,-170.89952817,0.00033746,120]
[391970555,1761035452370,-173.31009711,0.00033746,120]
[391970556,1761035452380,-316.08663459,0.00033746,120]
[391970557,1761035452389,-213.22683378,0.00033746,120]
[391970558,1761035452398,-349.44876724,0.00033746,120]
[391970559,1761035452408,-262.00888392,0.00033746,120]
[391970560,1761035452418,-160.0,0.00033746,120]
[391970561,1761035452428,-321.70681494,0.00033746,120]
[391970562,1761035452437,-307.21351409,0.00033746,120]
[391970563,1761035452447,-240.174277,0.00033746,120]
[391970564,1761035452457,-375.28993423,0.00033746,120]
[391970565,1761035452467,-429.41728117,0.00033746,120]
[391970566,1761035452476,-217.11271262,0.00033746,120]
[391970567,1761035452486,-160.95600782,0.00033746,120]
[391970568,1761035452496,-409.72995133,0.00033746,120]
[391970569,1761035452505,-380.14226825,0.00033746,120]
[391970570,1761035452515,-347.5567226,0.00033746,120]
[391970571,1761035452525,-217.13401284,0.00033746,120]
[391970572,1761035452535,-375.50659001,0.00033746,120]
[391970573,1761035452544,-202.16431119,0.00033746,120]
[391970574,1761035452554,-160.0,0.00033746,15]
[391970575,1761035452563,-237.76308406,0.00033746,120]
[391970576,1761035452574,-306.46186114,0.00033746,120]
[391970577,1761035452584,-218.08708426,0.00033746,120]
[391970578,1761035452593,-307.10938801,0.00033746,120]
[391970579,1761035452602,-223.11426536,0.00033746,120]
[391970580,1761035452612,-340.55437754,0.00033746,120]
[391970581,1761035452623,-397.54240482,0.00033746,120]
[391970582,1761035452633,-353.35522734,0.00033746,120]
[391970583,1761035452643,-277.90759147,0.00033746,120]
[391970584,1761035452652,-160.0,0.00033746,120]
[391970585,1761035452661,-197.1874383,0.00033746,120]
[391970586,1761035452671,-280.40698201,0.00033746,120]
[391970587,1761035452680,-271.62645629,0.00033746,120]
[391970588,1761035452690,-411.11662734,0.00033746,120]
[391970589,1761035452699,-189.0,0.00033746,120]
[391970590,1761035452708,-400.67647797,0.00033746,120]
[391970591,1761035452718,-258.36052489,0.00033746,120]
[391970592,1761035452727,-393.12396773,0.00033746,120]
[391970593,1761035452737,-209.47039469,0.00033746,120]
[391970594,1761035452746,-225.95447773,0.00033746,120]
[391970595,1761035452755,-250.0,0.00033746,10]
[391970596,1761035452765,-250.0,0.00033746,10]
[391970597,1761035452774,-200.0,0.00033746,120]
[391970598,1761035452783,-250.0,0.00033746,10]
[391970599,1761035452792,-250.0,0.00033746,10]
[391970600,1761035452801,-250.501735,0.00033746,10]
[391970601,1761035452811,-200.0,0.00033746,120]
[391970602,1761035452820,-200.0,0.00033746,120]
[391970603,1761035452830,-200.0,0.00033746,120]
[391970604,1761035452840,-200.0,0.00033746,120]
[391970605,1761035452849,-200.0,0.00033746,120]
[391970606,1761035452859,-200.0,0.00033746,120]
[391970607,1761035452868,-200.0,0.00033746,120]
[391970608,1761035452877,-200.0,0.00033746,120]
[391970609,1761035452887,-200.0,0.00033746,120]
[391970610,1761035452897,-200.0,0.00033746,120]
[391970611,1761035452907,-200.0,0.00033746,120]
[391970612,1761035452917,-200.0,0.00033746,120]
[391970613,1761035452927,-200.0,0.00033746,120]
[391970614,1761035452937,-200.0,0.00033746,120]
[391970615,1761035452946,-200.0,0.00033746,120]
[391970616,1761035452956,-313.96032872,0.00033746,120]
[391970617,1761035452965,-152.42178415,0.00033746,120]
[391970618,1761035452975,-292.82261485,0.00033746,120]
[391970619,1761035452985,-18000028.0,0.00033746,20]
[391970620,1761035452994,-229.31846798,0.00033746,120]
[391970621,1761035453004,-160.99639489,0.00033746,120]
[391970622,1761035453014,-282.93037047,0.00033746,120]
[391970623,1761035453024,-500.0,0.00033746,14]
[391970624,1761035453034,-500.0,0.00033746,14]
[391970625,1761035453044,-500.0,0.00033746,14]
[391970626,1761035453055,-500.0,0.00033746,14]
[391970627,1761035453064,-500.0,0.00033746,14]
[391970628,1761035453074,-500.0,0.00033746,14]
[391970629,1761035453084,-500.0,0.00033746,14]
[391970630,1761035453095,-500.0,0.00033746,14]
[391970631,1761035453104,-500.0,0.00033746,14]
[391970632,1761035453113,-500.0,0.00033746,14]
[391970633,1761035453123,-500.0,0.00033746,14]
[391970634,1761035453132,-500.0,0.00033746,14]
[391970635,1761035453142,-500.0,0.00033746,14]
[391970636,1761035453151,-500.0,0.00033746,14]
[391970637,1761035453161,-500.0,0.00033746,14]
[391970638,1761035453170,-500.0,0.00033746,14]
[391970639,1761035453179,-500.0,0.00033746,14]
[391970640,1761035453189,-500.0,0.00033746,14]
[391970641,1761035453199,-500.0,0.00033746,14]
[391970642,1761035453209,-500.0,0.00033746,14]
[391970643,1761035453218,-500.0,0.00033746,14]
[391970644,1761035453227,-540.73321375,0.00033746,14]
[391970645,1761035453237,-180.19307343,0.00033746,120]
[391970646,1761035453247,-240.82074905,0.00033746,120]
[391970647,1761035453257,-248.80764922,0.00033746,120]
[391970648,1761035453267,-347.80139777,0.00033746,120]
[391970649,1761035453277,-359.8211997,0.00033746,60]
[391970650,1761035453287,-152.18377625,0.00033746,30]
[391970651,1761035453297,-432.1013956,0.00033746,120]
[391970652,1761035453307,-246.30268099,0.00033746,120]
[391970653,1761035453317,-438.23680556,0.00033746,120]
[391970654,1761035453326,-221.81852776,0.00033746,120]
[391970655,1761035453336,-325.64338996,0.00033746,120]
[391970656,1761035453346,-313.78925778,0.00033746,60]
[391970657,1761035453356,-167.00541617,0.00033746,120]
[391970658,1761035453367,-440.92650877,0.00033746,120]
[391970659,1761035453377,-635.71448984,0.00033746,2]
[391970660,1761035453387,-17481.22242505,0.00033746,2]
[391970661,1761035453396,-1999.79221574,0.00033746,2]
[391970662,1761035453406,-4872.56800493,0.0003375,120]
[391970663,1761035453416,-500.0,0.00033773,5]
[391970664,1761035453425,-500.0,0.00033773,5]
[391970665,1761035453435,-500.0,0.00033773,4]
[391970666,1761035453445,-2309.91,0.000338,14]
[391970667,1761035453455,-173.097525,0.000338,20]
[391970668,1761035453464,-154.285212,0.000338,20]
[391970669,1761035453474,-151.100434,0.000338,20]
[391970670,1761035453484,-250.0,0.000338,10]
[391970671,1761035453494,-153.16,0.00033816,60]
[391970672,1761035453503,-403.4556715,0.000339,120]
[391970673,1761035453513,-250.0,0.000339,10]
[391970674,1761035453522,-153.16,0.00033916,60]
[391970675,1761035453531,-250.0,0.00034,10]
[391970676,1761035453541,-153.16,0.00034016,60]
[391970677,1761035453551,-862.96702941,0.00034026,2]
[391970678,1761035453561,-250.0,0.000341,10]
[391970679,1761035453571,-153.16,0.00034116,60]
[391970680,1761035453581,-250.0,0.000342,10]
[391970681,1761035453592,-150.0,0.00034202,2]
[391970682,1761035453601,-153.16,0.00034216,60]
[391970683,1761035453610,-250.0,0.000343,10]
[391970684,1761035453620,-160.0,0.00034309,3]
[391970685,1761035453630,-165.6173122,0.00034309,5]
[391970686,1761035453640,-153.16,0.00034316,60]
[391970687,1761035453650,-154.285212,0.00034317,14]
[391970688,1761035453660,-151.100434,0.00034317,14]
[391970689,1761035453671,-1000.0,0.00034321,5]
[391970690,1761035453680,-1000.0,0.00034321,5]
[391970691,1761035453690,-1000.0,0.00034321,4]
[391970692,1761035453699,-154.285212,0.00034334,2]
[391970693,1761035453708,-250.0,0.000344,10]
[391970694,1761035453718,-153.16,0.00034416,60]
[391970695,1761035453728,-250.0,0.000345,10]
[391970696,1761035453738,-1200.11079335,0.000345,14]
[391970697,1761035453747,-153.44492513,0.00034516,60]
[391970698,1761035453756,-250.0,0.000346,10]
[391970699,1761035453766,-501.0,0.00034746,120]
[391970700,1761035453775,-154.285212,0.0003476,14]
[391970701,1761035453784,-151.100434,0.0003476,14]
[391970702,1761035453794,-207.92127,0.000348,120]
[391970703,1761035453804,-154.285212,0.00034833,7]
[391970704,1761035453813,-151.100434,0.00034833,7]
[391970705,1761035453823,-1500.0,0.00034868,5]
[391970706,1761035453834,-1500.0,0.00034868,5]
[391970707,1761035453844,-4017.52657491,0.00034873,2]
[391970708,1761035453853,-403.4556715,0.000349,120]
[391970709,1761035453863,-331.05410071,0.00034901,120]
[391970710,1761035453872,-10677.68495292,0.00035,2]
[391970711,1761035453881,-655.57115569,0.00035,2]
[391970712,1761035453891,-25515.4010268,0.00035,2]
[391970713,1761035453900,-1000.0,0.00035,2]
[391970714,1761035453910,-150.0,0.00035068,2]
[391970715,1761035453920,-1000.0,0.000353,2]
[391970716,1761035453929,-1337.474307,0.0003534,9]
[391970717,1761035453939,-1000.0,0.0003536,9]
[391970718,1761035453948,-1000.0,0.0003538,9]
[391970719,1761035453958,-1168.737153,0.0003538,9]
[391970720,1761035453968,-26862.27639722,0.000354,3]
[391970721,1761035453978,-2000.0,0.000354,15]
[391970722,1761035453987,-150.0,0.000354,76]
[391970723,1761035453998,-150.0,0.000354,76]
[391970724,1761035454008,-150.0,0.000354,76]
[391970725,1761035454017,-1000.0,0.000354,10]
[391970726,1761035454027,-1000.0,0.000354,10]
[391970727,1761035454036,-200.0,0.00035402,120]
[391970728,1761035454045,-500.0,0.00035416,5]
[391970729,1761035454055,-2000.0,0.00035416,5]
[391970730,1761035454064,-402.47597664,0.00035434,3]
[391970731,1761035454074,-1482784.3516,0.00035444,7]
[391970732,1761035454084,-154.285212,0.00035444,7]
[391970733,1761035454097,-151.100434,0.00035444,7]
[391970734,1761035454106,-151.0,0.00035444,30]
[391970735,1761035454115,-164.739767,0.00035444,30]
[391970736,1761035454125,-164.739767,0.00035444,30]
[391970737,1761035454135,-164.739767,0.00035444,30]
[391970738,1761035454145,-164.739767,0.00035444,30]
[391970739,1761035454154,-150.0,0.00035473,5]
[391970740,1761035454164,-1000.0,0.000356,2]
[391970741,1761035454174,-330.67513903,0.00035616,2]
[391970742,1761035454184,-497.0,0.00035664,30]
[391970743,1761035454194,-942.69,0.000357,14]
[391970744,1761035454203,-4763.99,0.000357,7]
[391970745,1761035454212,-502.0,0.00035746,120]
[391970746,1761035454221,-2309.91,0.000358,14]
[391970747,1761035454230,-1152.0,0.00035872,2]
[391970748,1761035454240,-1000.0,0.000359,2]
[391970749,1761035454250,-2500.0,0.00035964,5]
[391970750,1761035454259,-110057.90588565,0.00036,5]
[391970751,1761035454268,-47979.67226161,0.00036,5]
[391970752,1761035454277,-200.0,0.00036,14]
[391970753,1761035454287,-195.200869,0.00036,2]
[391970754,1761035454296,-250.0,0.00036021,5]
[391970755,1761035454305,-1000.0,0.000362,2]
[391970756,1761035454315,-203.40354636,0.0003621,2]
[391970757,1761035454323,-154.285212,0.00036211,30]
[391970758,1761035454332,-264.57119626,0.0003624,2]
[391970759,1761035454342,-168.63598432,0.00036344,30]
[391970760,1761035454351,-166.82818268,0.0003637,16]
[391970761,1761035454361,-2000.0,0.000364,17]
[391970762,1761035454369,-2164.0,0.00036479,2]
[391970763,1761035454379,-411.0,0.00036479,2]
[391970764,1761035454388,-1000.0,0.000365,2]
[391970765,1761035454397,-3000.0,0.00036512,5]
[391970766,1761035454406,-240.11853006,0.00036568,5]
[391970767,1761035454416,-166.4,0.00036648,30]
[391970768,1761035454425,-207.92127,0.000367,120]
[391970769,1761035454435,-503.0,0.00036746,120]
[391970770,1761035454444,-154.285212,0.00036779,2]
[391970771,1761035454453,-151.100434,0.00036779,2]
[391970772,1761035454463,-1000.0,0.000368,2]
[391970773,1761035454472,-12597.41321991,0.00037,2]
[391970774,1761035454482,-200.0,0.00037,14]
[391970775,1761035454491,-166.4,0.0003701,30]
[391970776,1761035454500,-3500.0,0.0003706,5]
[391970777,1761035454509,-1000.0,0.000371,2]
[391970778,1761035454519,-942.69,0.000373,14]
[391970779,1761035454528,-166.4,0.00037373,30]
[391970780,1761035454537,-1000.0,0.000374,2]
[391970781,1761035454547,-1110.199999,0.000374,19]
[391970782,1761035454556,-154.285212,0.00037416,30]
[391970783,1761035454566,-151.100434,0.00037416,30]
[391970784,1761035454576,-581343.40736019,0.00037444,7]
[391970829,1761035812547,2480.56,0.00024075,2]
[391970972,1761036632056,-2736.37993767,0.00024703,2]
[391970974,1761036632066,-3224.90843084,0.00024953,2]
[391970976,1761036632076,-300.0,0.00026179,2]
[391970978,1761036632085,-1000.0,0.0002618,2]
[391970980,1761036632095,-1000.0,0.0002618,2]
[391970982,1761036632104,-1000.0,0.0002618,2]
[391970983,1761036632114,-1000.0,0.0002618,2]
[391970984,1761036632124,-1000.0,0.0002618,2]
[391970985,1761036632134,-895.5273638,0.0002618,2]
[391970986,1761036632144,-250.0,0.00027126,2]
[391970987,1761036632155,-420.0,0.00028326,2]
[391970988,1761036632166,-587.0,0.0003065,2]
[391970989,1761036632177,-983.0,0.0003092,2]